Cogmind - Beta 12 @@@ ROGUE MODE // 2023.07.04 @ 20:37:00 Player: zapruda Result: Destroyed by D-53 Grenadier with Mini Grenade Launcher Performance ------------- Evolutions (0) 0 Regions Visited (2) 400 Robots Destroyed (3) 15 Value Destroyed (86) 86 Prototype IDs (0) 0 Alien Tech Used (0) 0 Bonus (0) 0 TOTAL SCORE: 501 Bonus ------- None Cogmind --------- Core Integrity 0/250 Matter 199/300 Energy 244/250 System Corruption 0% Temperature Cool (0) Movement Walking (190) Ox1 Location -10/Mines Parts ------- > --- POWER (1) -------- Ion Engine > --- PROPULSION (2) --- Aluminum Leg Aluminum Leg > --- UTILITY (2) ------ Large Storage Unit Targeting Computer > --- WEAPON (2) ------- Grenade Launcher > --- INVENTORY (15) --- Deuterium Engine Advanced Treads Aluminum Leg Small Storage Unit Improved Signal Interpreter Improved Terrain Scan Processor Assault Rifle Light Assault Rifle Light Cannon Peak State ------------ > --- POWER ------------ Light Ion Engine > --- PROPULSION ------- Advanced Treads Aluminum Leg > --- UTILITY ---------- Large Storage Unit Targeting Computer > --- WEAPON ----------- Assault Rifle Light Cannon > --- INVENTORY -------- Ion Engine Deuterium Engine Aluminum Leg Small Storage Unit Improved Signal Interpreter Improved Terrain Scan Processor Actuator Array Light Assault Rifle Light Assault Rifle Shock Bomb Launcher Grenade Launcher [Rating: 11] Favorites ----------- Power Light Ion Engine Engine Light Ion Engine Propulsion Aluminum Leg Treads Advanced Treads Leg Aluminum Leg Utility Targeting Computer Storage Large Storage Unit Processor Targeting Computer Weapon Light Assault Rifle Ballistic Gun Light Assault Rifle Ballistic Cannon Light Cannon Launcher Grenade Launcher Build | -11 -10 -10 ------- Run | Jun Mat Min Slots Evolved . | . . . Power . | . . . Propulsion . | . . . Utility . | . . . Weapon . | . . . Parts Attached 11 | . 3 8 Power 1 | . . 1 Engine 1 | . . 1 Core . | . . . Reactor . | . . . Propulsion 3 | . . 3 Treads 1 | . . 1 Leg 2 | . . 2 Wheel . | . . . Hover . | . . . Flight . | . . . Utility 2 | . 2 . Device . | . . . Storage 1 | . 1 . Processor 1 | . 1 . Hackware . | . . . Protection . | . . . Artifact . | . . . Weapon 5 | . 1 4 Energy Gun . | . . . Energy Cannon . | . . . Ballistic Gun 2 | . . 2 Ballistic Cannon 1 | . 1 . Launcher 2 | . . 2 Special Weapon . | . . . Impact Weapon . | . . . Slashing Weapon . | . . . Piercing Weapon . | . . . Special Melee Weapon . | . . . Unidentified Prototypes . | . . . Parts Lost 4 | . . 4 Power 1 | . . 1 Propulsion 1 | . . 1 Utility . | . . . Weapon 2 | . . 2 Highest Loss Streak 3 | . . 3 To Critical Strikes . | . . . Average Slot Usage (%) 97 | . 100 95 Engine 12 | . 14 10 Treads 4 | . . 6 Leg 23 | . 28 21 Storage 14 | . 14 14 Processor 14 | . 14 14 Ballistic Gun 20 | . 18 21 Ballistic Cannon 7 | . 10 5 Naked Turns . | . . . Heaviest Build 32 | 11 28 32 Greatest Support 22 | 20 20 22 Greatest Overweight (x) 1 | . 1 1 Average Overweight (x) . | . . . Largest Inventory Capacity 15 | . 15 15 Average Capacity 14 | . 14 15 Most Carried 12 | . 7 12 Average Carried 8 | . 4 9 Final Capacity 15 | 8 15 15 Final Carried 9 | 6 5 9 Class Distribution -------------------- 100% | Mutant Dominant Class ---------------- Mutant | -10/Materials Mutant | -10/Mines Resources | -11 -10 -10 ----------- Run | Jun Mat Min Matter Collected 300 | 193 . 107 Remotely . | . . . Salvage Created 129 | . . 129 Parts 7 | . . 7 Haulers Intercepted . | . . . Recyclers Shooed . | . . . Parts Field Recycled . | . . . Retrieved Matter . | . . . Parts Self-Destructed . | . . . Prevented . | . . . Kills | -11 -10 -10 ------- Run | Jun Mat Min Combat Hostiles Destroyed 4 | . . 4 Guns 2 | . . 2 AOE 2 | . . 2 Classes Destroyed 3 | . . 3 Builder 1 | . . 1 Grunt 2 | . . 2 Assembled 2 | . . 2 Best Kill Streak 3 | . . 3 Combat Bots Only 2 | . . 2 Max Kills in Single Turn 2 | . . 2 Gunslinging 1 | . . 1 Exploded 1 | . . 1 Melee . | . . . Uniques/NPCs Destroyed . | . . . Combat | -11 -10 -10 -------- Run | Jun Mat Min Damage Taken 783 | . . 783 Core 276 | . . 276 Absorbed by Shields . | . . . Core Remaining (%) 100 | 100 . . Volleys Fired 24 | . . 24 Largest 2 | . . 2 Hottest 56 | . . 56 Shots Fired 43 | . . 43 Gun 33 | . . 33 Cannon 3 | . . 3 Launcher 7 | . . 7 Special . | . . . Kinetic 36 | . . 36 Thermal . | . . . Explosive 5 | . . 5 Electromagnetic 2 | . . 2 Robot Hit Streak 7 | . . 7 Robot Miss Streak 3 | . . 3 Penetration Max . | . . . Secondary Targets 1 | . . 1 Max Gunslinging Chain 1 | . . 1 Shots Hit Robots 30 | . . 30 Core Hits 17 | . . 17 Critical Kills . | . . . Critical Parts Destroyed . | . . . Critical Strikes . | . . . Melee Attacks . | . . . Impact . | . . . Slashing . | . . . Piercing . | . . . Sneak Attacks . | . . . Combat Hostiles . | . . . Follow-up Attacks . | . . . Damage Inflicted 475 | . . 475 Guns 207 | . . 207 Cannons 18 | . . 18 Explosions 250 | . . 250 Melee . | . . . Ramming . | . . . Kinetic 225 | . . 225 Thermal . | . . . Explosive 61 | . . 61 Electromagnetic 189 | . . 189 Impact . | . . . Slashing . | . . . Piercing . | . . . Highest Corruption . | . . . Average Corruption . | . . . Corruption Purged . | . . . Corruption Blocked . | . . . Overload Shots . | . . . Overflow Damage 7 | . . 7 Projectiles . | . . . Explosions 7 | . . 7 Melee . | . . . Knockbacks 1 | . . 1 Impact . | . . . Kinetic 1 | . . 1 Secondary . | . . . Self-Inflicted Damage 11 | . . 11 Shots 1 | . . 1 Rammed . | . . . Targets Rammed . | . . . Kicked . | . . . Crushed . | . . . Highest Temperature 31 | . . 31 Average Temperature 16 | . . 16 Received Heat Transfer 168 | . . 168 Siege Activations . | . . . Robots Corrupted . | . . . Combat Hostiles . | . . . Parts Fried . | . . . Impact Corruptions . | . . . Robots Melted . | . . . Combat Hostiles . | . . . Parts Melted . | . . . Heat Transferred . | . . . Parts Sabotaged . | . . . Parts Stolen . | . . . Parts Stripped . | . . . Power Chain Reactions . | . . . Missiles Intercepted . | . . . Alert | -11 -10 -10 ------- Run | Jun Mat Min Peak Influence 58 | . . 58 Initial . | . . . Average 14 | . . 23 Maximum Alert Level . | . . . Low Security (%) 100 | . 100 100 Level 1 . | . . . Level 2 . | . . . Level 3 . | . . . Level 4 . | . . . Level 5 . | . . . High Security . | . . . Max Security . | . . . Squads Dispatched . | . . . Investigation . | . . . Extermination . | . . . Reinforcement . | . . . Assault . | . . . Garrison . | . . . Intercept . | . . . Searches Triggered . | . . . Construction Impeded . | . . . Haulers Reinforced . | . . . Active Scanning Responses . | . . . Cargo Convoy Interrupts . | . . . Stealth | -11 -10 -10 --------- Run | Jun Mat Min Distress Signals . | . . . Communications Jammed . | . . . Distress Signals . | . . . Times Spotted 11 | . . 11 Peak Tracking Total 7 | . 1 7 Tactical Retreats . | . . . Traps | -11 -10 -10 ------- Run | Jun Mat Min Traps Triggered . | . . . Indirectly . | . . . Trap Hack Attempts . | . . . Triggered . | . . . Disarmed . | . . . Reprogrammed . | . . . Reused . | . . . Traps Extracted . | . . . Installed . | . . . Triggered . | . . . Machines | -11 -10 -10 ---------- Run | Jun Mat Min Machines Disabled . | . . . Max in Single Turn . | . . . Machines Repaired . | . . . Machines Sabotaged . | . . . Overloaded Fab Kills . | . . . Hacking | -11 -10 -10 --------- Run | Jun Mat Min Machines Accessed 1 | . . 1 Terminals . | . . . Fabricators . | . . . Repair Stations . | . . . Recycling Units . | . . . Scanalyzers . | . . . Garrison Access . | . . . Total Hacks 1 | . . 1 Successful 1 | . . 1 Failed . | . . . Catastrophic . | . . . Database Lockouts . | . . . Manual . | . . . Terminals . | . . . Fabricators . | . . . Repair Stations . | . . . Recycling Units . | . . . Scanalyzers . | . . . Garrison Access . | . . . Terminal Hacks 1 | . . 1 Open Door 1 | . . 1 Fabricator Hacks . | . . . Repair Station Hacks . | . . . Recycling Unit Hacks . | . . . Scanalyzer . | . . . Garrison Access Hacks . | . . . Unauthorized Hacks . | . . . Terminals . | . . . Fabricators . | . . . Repair Stations . | . . . Recycling Units . | . . . Scanalyzers . | . . . Garrison Access . | . . . Data Cores Recovered . | . . . Used . | . . . Hacking Detections . | . . . Full Trace Events . | . . . Feedback Events . | . . . Feedback Blocked . | . . . Robot Schematics Acquired . | . . . Robots Built . | . . . Authchips . | . . . Time . | . . . Total Robot Build Rating . | . . . Part Schematics Acquired . | . . . Parts Built . | . . . Authchips . | . . . Time . | . . . Total Part Build Rating . | . . . Parts Repaired . | . . . Time . | . . . Parts Recycled . | . . . Recycled Matter . | . . . Retrieved Matter . | . . . Retrieved Components . | . . . Parts Scanalyzed . | . . . Part Schematics Acquired . | . . . Parts Damaged . | . . . Bothacking | -11 -10 -10 ------------ Run | Jun Mat Min Used RIF Installer . | . . . Robots Hacked . | . . . Non-combat . | . . . Combat . | . . . Robot Hacks Applied . | . . . Relay Couplers Released . | . . . Fabnet Peak Effective % . | . . . Robots Rewired . | . . . Allies Hacked . | . . . Hacks Repelled . | . . . Allies | -11 -10 -10 -------- Run | Jun Mat Min Total Allies . | . . . Largest Group . | . . . Highest-Rated Group . | . . . Highest-Rated Ally . | . . . Total Orders . | . . . Ally Attacks . | . . . Total Damage . | . . . Kills . | . . . Allies Corrupted . | . . . Allies Melted . | . . . Intel | -11 -10 -10 ------- Run | Jun Mat Min Robot Analysis Total . | . . . Derelict Logs Recovered 2 | . . 2 Drone Launches . | . . . Drone Recoveries . | . . . Exploration | -11 -10 -10 ------------- Run | Jun Mat Min Turns Passed 566 | . 211 355 Spaces Moved 264 | 1 110 153 Core . | . . . Treads 74 | . . 74 Legs 190 | 1 110 79 Wheels . | . . . Hover . | . . . Flight . | . . . Fastest Speed 120 | 120 120 145 Average Speed 182 | 120 184 180 Slowest Speed 225 | 120 190 225 Overloaded Moves . | . . . Propulsion Burnouts . | . . . Robots Hopped . | . . . Cave-ins Triggered . | . . . Exploration Rate (%) 22 | 2 30 34 Regions Visited 2 Branch Regions 1 Pre-discovered Areas 2 | . . 2 Known Exits Taken . | . . . Unknown Exits Taken 2 | 1 1 . Scrap Searched 1 | . . 1 Spaces Dug . | . . . Terrain Destroyed 44 | . . 44 Melee . | . . . Projectile . | . . . AOE 44 | . . 44 Terrain Rammed . | . . . Walls Destroyed . | . . . Machines Disabled . | . . . Actions | -11 -10 -10 --------- Run | Jun Mat Min Total 314 | . 120 194 Wait . | . . . Move 262 | . 109 153 Hop . | . . . Pick Up 12 | . 4 8 Fast Attach . | . . . Attach 4 | . 1 3 Detach . | . . . Swap 7 | . 2 5 Drop 5 | . 4 1 Fire 24 | . . 24 Melee . | . . . Ram . | . . . Kick . | . . . Crush . | . . . Escape Stasis . | . . . Rewire . | . . . Trap . | . . . Miscellaneous . | . . . Route ------- -11/Junkyard -10/Materials -10/Mines History --------- Turn | Location | Event 1 | -11/Junkyard | Discovered new exit (range 0) 1 | -11/Junkyard | Entered Materials 176 | -10/Materials | Discovered new exit (range 16) 212 | -10/Materials | Entered Mines 228 | -10/Mines | Learned location of Storage (-7) 253 | -10/Mines | Met a Derelict who couldn't figure out how to use a Trap Extractor 310 | -10/Mines | Build established: Mutant 535 | -10/Mines | Assembled infested the area 540 | -10/Mines | Assisted by a Guerilla fighting off Assembled 552 | -10/Mines | Core integrity fell below 50% 563 | -10/Mines | Core integrity fell below 20% 567 | -10/Mines | Destroyed by D-53 Grenadier with Mini Grenade Launcher Last Messages --------------- 00547_ U-05 Engineer builds a Wall. 00551_ HV Slug penetrates Wall. 00551_ as-30035 destroyed. 00553_ HV Slug penetrates Wall. 00554_ Aluminum Leg destroyed. 00554_ Destroyed Aluminum Leg. 00554_ as-05653 destroyed. 00555_ as-72794 suffers critical hit (Destroy). 00555_ as-72794 destroyed. 00555_ Shock Bomb Launcher destroyed. 00556_ C-30 ARC bursts open, deploying its payload. 00556_ D-53 Grenadier unfolds itself. 00556_ W7-IL4(h) destroyed. 00556_ as-05525 destroyed. 00556_ as-31743 destroyed. 00557_ Lgt. Assault Rifle destroyed. 00558_ as-02365 destroyed. 00558_ as-91468 destroyed. 00558_ U-05 Engineer destroyed. 00566_ The unstable cave ceiling collapses. Map ----- +----------------------------------------------------+ | ?????????????????????????????? | | ?????????????????????????????? | | ?????????????????????????????? | | ?????????????????????????????? | | ?????????????????????????????? | | ?????????????????????????????? | | ?????????????????????????????? | | ?????????????????????????????? | | ?????????????????????????????? | | ?????????????????????????????? | | ?????????????????????????????? | | ?????????????????????????????? | | ?????????????????????????????? | | ?????????????????????????????? | | ?????????????????????????????? | | ?????????????????????????????? | | ??######?????????????????????? | | ??#;# #?????????????????????? | | ??? ?????????????????????? | | ??## ?????????????????????? | | ??# #?????????????????????? | | ?## ###???????????????????# | | ## #???????????????????# | | # #???????????????????# | | # ##????????####??????# | | ?# @ #???????## ##?????? | | ?# ##??###### ##????? | | # = #?## ###??? | | ## #?# #### | | ?## d #?# | | ?? ##?# | | ?? #??# ## #### | | ?# #??# #### ##??? | | ? ####==###??## ##???? | | ? % !!#?????####????? | | ## ####! #?????????????? | | ? #??# #?????????????? | | ?# #??# #?????????????? | | ?## #??# #?????????????? | | ??# ######??# ?????????????? | | ??# #???????# ????????????? | | ??# #?????#######????????????? | | ??# #????## ##??????????????? | | ??# #????# #??????????????? | | ??#%##???# #??????????????? | | ?##[ ##??## #??????????????? | | ?# ! #??## ##??????????????? | | ?# #### #???????????????? | | ?# ## #???????????????? | | ?## #???????????????? | +----------------------------------------------------+ Best States ------------- Heat Dissipation 25 Energy Generation 10 Energy Capacity 250 Matter Stores 300 Matter Capacity 300 Sight Range 16 Terrain Scan Density 10 Evasion (%) 45 Targeting Accuracy 5 Recoil Reduction 1 Item Schematics ----------------- None Robot Schematics ------------------ None Fabricated ------------ Nothing Alien Tech Used ----------------- None Achievements -------------- None Challenges ------------ None Game ------ Seed InsulatedIonicKit Manual? 0 Play Time 00:05:44 Cumulative 78.5 hours Start 2023.07.04 @ 20:33:41 End 2023.07.04 @ 20:37:00 Sessions 1 Manual Loads 0 Difficulty Rogue Special Mode None Game No. 121 Rogue 121 Adventurer 0 Explorer 0 Win Type - Total 0 Types 0/0/0/0/0/0/0/0/0 Lore% 29 Gallery% 51 Achievement% 35 Wizard Run 0 Options --------- ASCII 0 Keyboard 0 Movement Mouse Keybinds 0 Fullscreen 2 Font 18/SmallcapsGlow Map View 76x50 Tactical HUD 1 Map Filters NONE Filters NONE Steam 1 RUN: 99738603-a352-4493-98ad-3b0706ec5c3e